bitfinex/quotes_SOLUSD_20240824
["timestamp","ask_amount","ask_price","bid_price","bid_amount"]
[1724533954432,6.2531,159.92,159.84,6.2938]
[1724533954637,6.2531,159.92,159.85,45.0]
[1724533955011,6.2523,159.94,159.87,16.0407]
[1724533955244,31.6532,159.98,159.87,16.0407]
[1724533955245,6.2518,159.96,159.88,45.0]
[1724533955531,6.2518,159.96,159.88,46.25027449]
[1724533955730,6.2518,159.96,159.89,6.2144]
[1724533955917,6.2512,159.97,159.9,1.25046117]
[1724533956119,6.2512,159.97,159.9,46.25046117]
[1724533957630,6.2508,159.98,159.9,46.25046117]
[1724533959436,6.2508,159.98,159.89,6.2144]
[1724533959437,6.2516,159.96,159.89,6.2144]
[1724533962338,6.2516,159.96,159.87,16.0407]
[1724533962339,27.32317697,159.92,159.87,16.0407]
[1724533963517,6.2531,159.92,159.87,16.0407]
[1724533964219,21.07007697,159.96,159.88,45.0]
[1724533964420,21.07007697,159.98,159.88,45.0]
[1724533964820,6.252,159.95,159.88,45.0]
[1724533966515,6.2511,159.98,159.89,7.44436517]
[1724533966735,6.2504,159.99,159.9,65.0]
[1724533966919,6.2504,159.99,159.91,16.26095394]
[1724533967320,6.2508,159.98,159.91,16.26095394]
[1724533967643,6.25,160.0,159.92,46.25027023]
[1724533967830,6.25,160.0,159.93,1.25018109]
[1724533968028,6.2496,160.01,159.93,1.25018109]
[1724533968231,6.2496,160.01,159.94,6.1939]
[1724533968434,6.2491,160.03,159.95,45.0]
[1724533969853,6.2496,160.01,159.95,45.0]
[1724533971251,6.2489,160.03,159.95,45.0]
[1724533973052,7.0769541,160.04,159.95,45.0]
[1724533973258,7.0769541,160.04,159.96,15.4224]
[1724533973554,7.0769541,160.04,159.97,45.0]
[1724533974546,7.0769541,160.04,159.98,1.24978431]
[1724533974946,7.0769541,160.04,159.97,45.0]
[1724533975855,7.0769541,160.04,159.98,1.24976755]
[1724533976055,0.8285541,160.04,159.97,45.0]
[1724533976237,0.8285541,160.04,159.99,6.1741]
[1724533976443,0.8285541,160.04,160.0,46.24955256]
[1724533977343,6.2461,160.1,160.01,23.21852752]
[1724533977656,6.2456,160.12,160.02,66.24932524]
[1724533978345,6.2458,160.11,160.02,66.24932524]
[1724533978544,6.2461,160.1,160.02,46.24929108]
[1724533979061,6.2457,160.11,160.02,46.24929108]
[1724533980155,6.2453,160.13,160.02,67.31936805]
[1724533980361,6.2453,160.13,160.03,20.0]
[1724533980562,6.2453,160.13,160.04,46.24913495]
[1724533980739,6.2453,160.12,160.05,1.24914895]
[1724533982149,6.2449,160.13,160.06,21.969]
[1724533982347,6.2449,160.13,160.07,46.24908875]
[1724533982544,6.2454,160.12,160.06,21.969]
[1724533982945,21.07007697,160.16,160.07,1.24915144]
[1724533983257,6.2441,160.15,160.07,45.0]
[1724533983852,6.2441,160.15,160.08,1.24893298]
[1724533984360,6.2437,160.17,160.08,20.0]
[1724533984668,6.2437,160.16,160.09,45.0]
[1724533984839,6.2441,160.15,160.09,45.0]
[1724533987262,0.8285541,160.2,160.06,21.969]
[1724533987263,21.07007697,160.16,160.06,21.969]
[1724533987447,21.07007697,160.14,160.06,21.969]
[1724533988060,27.31457697,160.14,160.06,21.969]
[1724533988664,27.31457697,160.14,160.07,45.0]
[1724533989060,6.2441,160.15,160.07,45.0]
[1724533990455,27.31377697,160.17,160.07,45.0]
[1724533990651,21.07007697,160.17,160.07,45.0]
[1724533991251,16.4340541,160.2,160.07,45.0]
[1724533991476,6.2438,160.16,160.07,45.0]
[1724533991673,21.07007697,160.15,160.07,45.0]
[1724533991874,21.07007697,160.13,160.06,21.969]
[1724533992366,15.6085,160.17,160.06,21.969]
[1724533992664,21.07007697,160.15,160.06,21.969]
[1724533993267,6.2449,160.13,160.06,21.969]
[1724533993960,6.2449,160.13,160.07,45.0]
[1724533995366,6.2449,160.13,160.06,21.969]
[1724533995568,6.2468,160.08,160.06,21.969]
[1724533995757,21.07007697,160.09,160.06,21.969]
[1724533996271,6.2464,160.1,160.06,21.969]
[1724533996576,6.2465,160.09,160.06,21.969]
[1724533997857,21.07007697,160.08,159.98,282.6503]
[1724533998055,21.07007697,160.08,159.98,22.8503]
[1724533998256,6.2473,160.07,159.98,22.8503]
[1724533998675,6.248,160.05,159.98,22.8503]
[1724533999477,6.2476,160.06,159.98,22.8503]
[1724534000071,6.2473,160.07,159.98,22.8503]
[1724534000456,21.07007697,160.1,159.99,45.0]
[1724534000457,6.2467,160.09,159.99,45.0]
[1724534000656,6.2461,160.1,160.0,20.0]
[1724534000856,6.2461,160.1,160.01,45.0]
[1724534001670,6.2461,160.1,160.02,1.24884805]
[1724534004273,6.2461,160.1,160.03,16.2476]
[1724534004576,6.2461,160.1,160.04,52.85196096]
[1724534004777,6.2461,160.1,160.05,1.24926195]
[1724534004981,21.07007697,160.16,160.05,1.24926195]
[1724534005159,15.6074,160.18,160.05,1.24926195]
[1724534005357,21.07007697,160.17,160.04,72.67277697]
[1724534007097,6.2449,160.14,160.04,72.67277697]
[1724534007560,6.2449,160.13,160.04,72.67277697]
[1724534008963,6.2449,160.13,160.04,51.6027]
[1724534010882,6.2446,160.14,160.04,51.6027]
[1724534011669,6.2442,160.15,160.05,20.0]
[1724534011879,6.2442,160.15,160.06,45.0]
[1724534013383,6.2445,160.14,160.06,45.0]
[1724534014983,15.6074,160.18,160.06,45.0]
[1724534014984,6.2441,160.15,160.06,45.0]
[1724534015183,15.4165,160.19,160.06,45.0]
[1724534015371,21.0008864,160.17,160.06,45.0]
[1724534016269,6.2442,160.15,160.07,15.5927]
[1724534016468,6.2442,160.15,160.08,45.0]
[1724534016670,6.2442,160.15,160.09,1.24893416]
[1724534016979,6.2442,160.15,160.08,45.0]
[1724534020102,6.2437,160.16,160.08,45.0]
[1724534020996,6.2437,160.16,160.09,6.2981]
[1724534021894,6.2433,160.18,160.09,6.2981]
[1724534022105,21.0008864,160.19,160.09,6.2981]
[1724534022278,6.2438,160.16,160.09,6.2981]
[1724534022894,6.2441,160.15,160.09,6.2981]
[1724534023193,0.8285541,160.2,160.09,6.2981]
[1724534023394,20.8285541,160.2,160.09,6.2981]
[1724534023600,21.0008864,160.19,160.09,6.2981]
[1724534023894,20.8285541,160.2,160.09,6.2981]
[1724534024101,0.8285541,160.2,160.11,15.5927]
[1724534024403,0.8285541,160.2,160.12,46.24858057]
[1724534024986,7.0708541,160.2,160.12,46.24858057]
[1724534025794,0.8285541,160.2,160.13,6.2981]
[1724534025987,0.8285541,160.2,160.14,46.24843819]
[1724534026184,0.8285541,160.2,160.15,1.2484048]
[1724534026389,0.8285541,160.2,160.16,15.5927]
[1724534026586,0.8285541,160.2,160.17,1.24840511]
[1724534028299,0.8285541,160.2,160.18,1.24840611]
[1724534028680,0.8285541,160.2,160.16,15.5927]
[1724534029390,0.8285541,160.2,160.17,1.24840672]
[1724534029583,0.8285541,160.2,160.16,15.5927]
[1724534029991,0.8285541,160.2,160.17,1.24832904]
[1724534030180,0.8285541,160.2,160.16,16.84102979]
[1724534031980,0.8285541,160.2,160.16,15.5927]
[1724534033700,0.8285541,160.2,160.17,45.0]
[1724534035218,0.8285541,160.2,160.18,1.24817184]
[1724534035504,0.8285541,160.2,160.19,6.2437]
[1724534035699,0.8285541,160.2,160.19,51.2437]
[1724534036210,0.8285541,160.2,160.19,6.2437]
[1724534038807,0.8285541,160.2,160.16,15.5927]
[1724534039009,0.8285541,160.2,160.17,45.0]
[1724534040811,0.8285541,160.2,160.18,1.24814041]
[1724534042221,0.8285541,160.2,160.17,45.0]
[1724534047701,0.8285541,160.2,160.16,15.5927]
[1724534049119,0.8285541,160.2,160.17,45.0]
[1724534053435,0.8285541,160.2,160.18,22.23078207]
[1724534053732,0.8285541,160.2,160.19,65.0]
[1724534053914,0.8285541,160.2,160.17,45.0]
[1724534054315,0.8285541,160.2,160.18,20.0]
[1724534054546,0.8285541,160.2,160.19,45.0]
[1724534055449,0.8285541,160.2,160.19,66.24787316]
[1724534055955,0.8285541,160.2,160.19,65.0]
[1724534057829,0.8285541,160.2,160.19,71.3815]
[1724534059833,21.8279,160.31,160.19,71.3815]
[1724534060036,21.8279,160.31,160.2,40.98268456]
[1724534060220,21.8279,160.31,160.21,45.0]
[1724534060621,6.2374,160.33,160.22,38.12787088]
[1724534060834,22.201,160.35,160.24,20.98268456]
[1724534061031,22.201,160.35,160.25,20.0]
[1724534061342,15.9643,160.35,160.26,45.0]
[1724534061736,15.9643,160.35,160.25,45.0]
[1724534061939,6.2373,160.33,160.25,45.0]
[1724534062122,20.98268456,160.34,160.25,45.0]
[1724534062523,27.21968456,160.34,160.25,45.0]
[1724534062924,6.2374,160.33,160.25,45.0]
[1724534063121,6.2375,160.32,160.25,45.0]
[1724534063329,20.98268456,160.32,160.22,15.8975]
[1724534063532,6.2384,160.3,160.23,20.0]
[1724534063838,6.2387,160.29,160.22,15.8975]
[1724534064043,6.2383,160.3,160.22,15.8975]
[1724534064413,6.2388,160.29,160.19,6.3815]
[1724534065037,6.2388,160.29,160.2,20.0]
[1724534065236,20.98268456,160.32,160.21,1.24784379]
[1724534065442,6.2379,160.31,160.21,1.24784379]
[1724534065638,6.2383,160.3,160.2,20.0]
[1724534065944,6.2387,160.29,160.21,45.0]
[1724534066354,6.2391,160.28,160.21,45.0]
[1724534067064,31.5554,160.35,160.21,45.0]
[1724534067347,20.98268456,160.33,160.21,45.0]
[1724534067549,20.98268456,160.31,160.21,45.0]
[1724534067755,6.2387,160.29,160.21,45.0]
[1724534067933,6.2392,160.28,160.21,45.0]
[1724534068824,6.2402,160.26,160.2,20.0]
[1724534069025,6.2402,160.26,160.19,6.3815]
[1724534069265,6.2391,160.28,160.19,6.3815]
[1724534069460,6.2394,160.28,160.19,6.3815]
[1724534069628,37.22378456,160.29,160.19,6.3815]
[1724534069930,37.22378456,160.29,160.12,28.60123654]
[1724534069931,6.2406,160.24,160.15,6.5684]
[1724534070243,27.22378456,160.23,160.15,6.5684]
[1724534070831,37.22378456,160.23,160.1,22.408]
[1724534071140,20.98268456,160.21,160.11,10.68872126]
[1724534071721,27.22448456,160.21,160.11,10.68872126]
[1724534072332,27.22448456,160.21,160.12,20.0]
[1724534072629,27.22448456,160.21,160.11,20.0]
[1724534072828,27.22448456,160.21,160.11,27.67609881]
[1724534073035,27.22448456,160.21,160.12,3.01168158]
[1724534073244,27.22448456,160.21,160.12,6.02336225]
[1724534073436,27.22448456,160.21,160.13,45.0]
[1724534073853,27.22448456,160.21,160.12,48.01168158]
[1724534074060,27.22448456,160.21,160.13,20.0]
[1724534074261,20.98268456,160.21,160.14,45.0]
[1724534075155,27.22448456,160.21,160.14,45.0]
[1724534076532,20.98268456,160.21,160.14,45.0]
[1724534076737,20.98268456,160.21,160.13,20.0]
[1724534076932,6.2422,160.2,160.12,23.01168158]
[1724534077153,6.2422,160.2,160.13,45.0]
[1724534077558,6.2422,160.2,160.1,22.408]
[1724534077559,6.2426,160.19,160.1,22.408]
[1724534077742,6.2426,160.19,160.11,75.68744125]
[1724534077941,6.243,160.18,160.06,280.78268456]
[1724534078159,27.22598456,160.17,160.07,10.68642674]
[1724534078364,27.22598456,160.17,160.06,10.68642674]
[1724534078666,27.22598456,160.17,160.07,3.01238783]
[1724534079437,27.22598456,160.17,160.07,68.01238783]
[1724534079666,27.22598456,160.17,160.07,65.0]
[1724534079844,27.22598456,160.17,160.08,10.68631177]
[1724534080042,27.22598456,160.17,160.09,65.0]
[1724534081162,6.2442,160.15,160.09,45.0]
[1724534081354,6.2437,160.16,160.09,45.0]
[1724534082955,42.54928456,160.17,160.09,45.0]
[1724534084039,15.3232,160.17,160.09,45.0]
[1724534084239,15.3232,160.17,160.01,2.11538727]
[1724534084546,15.3232,160.17,160.07,20.98268456]
[1724534087354,15.3232,160.17,160.08,20.0]
[1724534088859,21.5667,160.17,160.08,20.0]
[1724534089067,51.4622,160.16,160.07,20.0]
[1724534089361,51.4622,160.16,160.08,3.01236233]
[1724534089566,57.706,160.16,160.07,3.01236233]
[1724534090365,57.706,160.16,160.06,20.0]
[1724534090865,57.706,160.16,160.07,3.01243071]
[1724534094254,57.706,160.16,160.04,20.0]
[1724534094660,57.706,160.16,160.05,3.01284449]
[1724534095060,57.706,160.16,160.04,20.0]
[1724534100749,57.706,160.16,160.03,36.17778456]
[1724534100750,6.2448,160.14,160.03,15.1951]
[1724534102177,6.2448,160.14,160.04,20.0]
[1724534102751,27.22678456,160.15,160.04,20.0]
[1724534102973,45.0,160.14,160.04,20.0]
[1724534104465,6.4622,160.16,160.04,40.98268456]
[1724534104466,12.7059,160.16,160.04,40.98268456]
[1724534105260,6.4622,160.16,160.06,20.98268456]
[1724534105459,6.4622,160.16,160.07,20.0]
[1724534109588,15.3232,160.17,160.08,20.98268456]
[1724534109760,15.3232,160.17,160.1,20.98268456]
[1724534109955,6.4694,160.2,160.12,20.98268456]
[1724534110161,6.4694,160.2,160.14,20.98268456]
[1724534110356,16.2708,160.21,160.16,20.98268456]
[1724534110575,16.2708,160.21,160.17,1.2481288]
[1724534110780,16.2708,160.21,160.18,1.24805087]
[1724534111569,6.4694,160.24,160.18,1.24805087]
[1724534112076,6.4694,160.24,160.16,20.98268456]
[1724534112580,6.4694,160.24,160.14,20.98268456]
[1724534112776,6.2414,160.22,160.12,20.98268456]
[1724534112983,6.4694,160.24,160.13,23.01095751]
[1724534113166,6.4694,160.24,160.13,20.0]
[1724534113374,12.7104,160.24,160.13,20.0]
[1724534113688,45.0,160.23,160.13,20.0]
[1724534113890,45.0,160.23,160.14,3.01142987]
[1724534114478,51.2411,160.23,160.14,3.01142987]
[1724534114679,51.2411,160.23,160.14,6.0225651]
[1724534116091,45.0,160.23,160.15,0.32415425]
[1724534116286,45.0,160.23,160.15,3.33528948]
[1724534117085,6.4694,160.24,160.15,3.33508849]
[1724534117672,6.4694,160.24,160.15,23.33508849]
[1724534117985,16.2708,160.25,160.16,3.01093424]
[1724534118180,16.2708,160.25,160.17,0.32411377]
[1724534118379,16.2708,160.25,160.17,3.33504801]
[1724534118584,16.2708,160.25,160.18,0.32409353]
[1724534118783,16.2708,160.25,160.18,3.33502777]
[1724534119291,16.2708,160.25,160.18,23.33502777]
[1724534119591,16.2708,160.25,160.18,41.30677809]
[1724534119767,16.2708,160.25,160.19,1.2480889]
[1724534121995,16.2708,160.25,160.19,4.258172]
[1724534122174,16.2708,160.25,160.19,21.2480889]
[1724534122996,16.2708,160.25,160.19,20.0]
[1724534124193,16.2708,160.25,160.2,1.24756987]
[1724534124391,16.2708,160.25,160.2,21.24756987]
[1724534124787,16.2708,160.25,160.21,1.24749199]
[1724534125876,16.2708,160.25,160.2,1.24786392]
[1724534126076,16.2708,160.25,160.21,1.24778603]
[1724534127083,16.2708,160.25,160.19,20.0]
[1724534128296,16.2708,160.25,160.17,20.0]
[1724534130176,27.22128456,160.3,160.18,1.24806903]
[1724534130385,45.0,160.29,160.18,20.98268456]
[1724534130596,45.0,160.29,160.19,20.0]
[1724534130882,45.0,160.29,160.2,1.24763257]
[1724534133809,45.0,160.29,160.19,35.2655]
[1724534134099,51.2386,160.29,160.19,35.2655]
[1724534139316,45.0,160.29,160.19,35.2655]
[1724534139506,45.0,160.3,160.19,35.2655]
[1724534139992,45.0,160.3,160.19,36.51266526]
[1724534140812,51.2386,160.3,160.19,36.51266526]
[1724534141283,6.2387,160.29,160.19,36.51266526]
[1724534141617,45.0,160.28,160.19,36.51266526]
[1724534143303,45.0,160.29,160.19,36.51266526]
[1724534143489,45.0,160.3,160.19,36.51266526]
[1724534145621,45.0,160.3,160.2,20.98268456]
[1724534145823,45.0,160.3,160.21,1.24700956]
[1724534146918,6.2374,160.33,160.22,6.4727]
[1724534147091,71.2376,160.32,160.23,1.24781478]
[1724534147491,15.7861,160.35,160.24,20.98268456]
[1724534147714,22.0228,160.35,160.25,36.98435904]
[1724534148707,45.0,160.34,160.25,36.98435904]
[1724534149716,6.2371,160.33,160.25,35.7367]
[1724534149916,45.0,160.32,160.25,35.7367]
[1724534150626,1.55969636,160.31,160.22,6.4727]
[1724534150801,20.98268456,160.31,160.22,6.4727]
[1724534151124,45.0,160.3,160.22,7.72062697]
[1724534152705,27.21978456,160.33,160.22,7.72062697]
[1724534152904,27.21978456,160.33,160.22,10.73002342]
[1724534153125,6.2371,160.33,160.22,28.70331153]
[1724534154116,6.2371,160.33,160.23,3.00931266]
[1724534154421,6.2371,160.33,160.24,1.24768876]
[1724534154625,51.2375,160.32,160.22,6.4727]
[1724534155535,51.2375,160.32,160.22,9.48226579]
[1724534156026,6.2379,160.31,160.22,9.48226579]
[1724534156230,45.0,160.3,160.22,6.4727]
[1724534156721,45.0,160.3,160.22,9.48252784]
[1724534157709,45.0,160.3,160.23,3.00982784]
[1724534159812,45.0,160.3,160.22,6.4727]
[1724534160733,45.0,160.3,160.22,14.15363932]
[1724534160943,45.0,160.3,160.22,6.4727]
[1724534161308,45.0,160.3,160.22,14.15415212]
[1724534161520,45.0,160.3,160.22,6.4727]
[1724534161830,45.0,160.3,160.23,7.68175227]
[1724534162031,45.0,160.3,160.24,1.24722592]
[1724534163705,6.2375,160.32,160.24,1.24722592]
[1724534163910,6.2375,160.32,160.22,6.4727]
[1724534164214,6.2375,160.32,160.23,8.92924394]
[1724534164413,27.21978456,160.33,160.24,7.68187732]
[1724534164627,45.0,160.32,160.25,1.24725368]
[1724534164837,6.2367,160.34,160.25,1.24725368]
[1724534165142,6.2367,160.34,160.26,23.44008355]
[1724534165341,6.2367,160.34,160.27,1.24709809]
[1724534166216,27.21908456,160.35,160.27,1.24709809]
[1724534166733,45.0,160.34,160.27,1.24709809]
[1724534169847,51.2367,160.34,160.27,1.24709809]
[1724534170222,45.0,160.34,160.27,1.24709809]
[1724534172244,45.0,160.34,160.26,14.26089679]
[1724534172820,45.0,160.34,160.27,0.74721296]
[1724534173938,0.8285541,160.36,160.27,0.74721296]
[1724534173939,0.8285541,160.36,160.28,7.11161779]
[1724534174137,0.8285541,160.36,160.28,14.79615391]
[1724534174446,0.8285541,160.36,160.28,7.11161779]
[1724534175046,0.8285541,160.36,160.29,27.68572931]
[1724534175338,0.8285541,160.36,160.31,16.4956]
[1724534175534,0.8285541,160.36,160.32,0.74552887]
[1724534180047,0.8285541,160.36,160.32,20.74552887]
[1724534181038,0.8285541,160.36,160.33,6.3649]
[1724534181350,0.8285541,160.36,160.33,7.1096986]
[1724534183630,0.8285541,160.36,160.34,20.98268456]
[1724534183834,0.8285541,160.36,160.35,17.2403057]
[1724534184132,0.3285541,160.36,160.35,37.2403057]
[1724534187533,0.872687,160.44,160.35,37.2403057]
[1724534187750,0.872687,160.44,160.37,20.98268456]
[1724534187927,0.872687,160.44,160.38,0.74390679]
[1724534188331,0.872687,160.44,160.39,20.98268456]
[1724534188553,0.872687,160.44,160.4,7.10853626]
[1724534189159,0.872687,160.44,160.4,23.77383626]
[1724534191470,0.872687,160.44,160.41,0.74358989]
[1724534193460,0.872687,160.44,160.4,23.0302]
[1724534193681,0.872687,160.44,160.36,43.1712]
[1724534200478,0.872687,160.44,160.36,43.91482277]
[1724534201169,0.872687,160.44,160.37,0.74357639]
[1724534201485,0.872687,160.44,160.39,20.98268456]
[1724534201686,0.872687,160.44,160.4,20.74295255]
[1724534201858,0.872687,160.44,160.41,65.98268456]
[1724534202162,0.872687,160.44,160.42,20.0]
[1724534203091,0.872687,160.44,160.43,21.72524466]
[1724534203295,0.872687,160.44,160.43,41.72524466]
[1724534204703,0.8285541,160.52,160.43,47.13108456]
[1724534204893,0.8285541,160.52,160.47,20.98268456]
[1724534205062,0.8285541,160.52,160.48,20.0]
[1724534205777,0.8285541,160.52,160.46,20.0]
[1724534207265,0.8285541,160.52,160.47,20.98268456]
[1724534207463,0.8285541,160.52,160.48,20.0]
[1724534207687,0.8285541,160.52,160.49,20.98268456]
[1724534207895,0.8285541,160.52,160.5,20.0]
[1724534209781,0.8285541,160.52,160.48,20.0]
[1724534211287,0.8285541,160.52,160.44,20.98268456]
[1724534212413,0.8285541,160.52,160.5,20.98268456]
[1724534212767,0.8285541,160.52,160.51,20.0]
[1724534213790,0.8285541,160.52,160.51,65.0]
[1724534216587,21.7892,160.64,160.51,85.0]
[1724534216588,15.5641,160.64,160.51,85.0]
[1724534216890,15.5641,160.64,160.55,20.98268456]
[1724534217087,15.5641,160.64,160.56,20.0]
[1724534219105,6.3022,160.66,160.56,26.4445]
[1724534220688,12.5266,160.66,160.56,26.4445]
[1724534220886,20.98268456,160.65,160.56,20.0]
[1724534221092,21.7901,160.62,160.54,20.0]
[1724534221304,21.7901,160.62,160.53,20.0]
[1724534221613,15.5641,160.62,160.53,40.98268456]
[1724534222100,15.5641,160.62,160.53,20.98268456]
[1724534223268,15.5641,160.62,160.54,20.0]
[1724534226895,15.5641,160.62,160.53,20.0]
[1724534227090,15.5641,160.62,160.55,0.74018028]
[1724534228916,15.5641,160.62,160.56,0.73985758]
[1724534229284,15.5641,160.62,160.55,20.98268456]
[1724534229479,15.5641,160.62,160.56,20.0]
[1724534231822,15.5641,160.62,160.54,20.0]
[1724534234205,6.2266,160.61,160.52,20.0]
[1724534234401,6.2266,160.61,160.49,20.98268456]
[1724534234402,6.1622,160.6,160.49,20.98268456]
[1724534235407,6.1622,160.6,160.5,0.74038687]
[1724534236218,27.14488456,160.6,160.48,6.03002453]
[1724534236428,16.5266,160.56,160.47,43.65688456]
[1724534237534,16.5266,160.56,160.47,20.98268456]
[1724534237712,16.5266,160.56,160.45,20.98268456]
[1724534238631,6.1622,160.55,160.45,20.98268456]
[1724534239346,6.1622,160.55,160.47,20.98268456]
[1724534239715,6.1622,160.55,160.48,20.47876176]
[1724534240031,6.1622,160.55,160.48,20.0]
[1724534241924,6.1622,160.55,160.49,0.47855308]
[1724534242439,6.1622,160.55,160.48,20.0]
[1724534246132,6.1622,160.55,160.49,3.00278948]
[1724534246328,6.1622,160.55,160.49,10.70488351]
[1724534246546,6.1622,160.55,160.5,20.74099905]
[1724534247021,6.1622,160.55,160.5,0.74099905]
[1724534247434,6.1622,160.55,160.5,20.74099905]
[1724534247637,6.1622,160.55,160.5,20.0]
[1724534248142,6.1622,160.55,160.48,20.0]
[1724534248332,6.1622,160.55,160.49,10.7049472]
[1724534248817,6.1622,160.55,160.5,20.0]
[1724534249217,6.1622,160.55,160.51,3.00274728]
[1724534249720,6.1622,160.55,160.49,10.70490611]
[1724534250020,6.1622,160.55,160.5,20.0]
[1724534250325,16.5266,160.56,160.51,31.68758951]
[1724534250639,16.5266,160.56,160.51,20.98268456]
[1724534251145,16.5266,160.56,160.52,3.74331283]
[1724534251521,16.5266,160.56,160.52,0.74062987]
[1724534253024,16.5266,160.56,160.53,21.72312788]
[1724534253246,16.5266,160.56,160.53,0.74044332]
[1724534254046,16.5266,160.56,160.52,20.0]
[1724534254629,16.5266,160.56,160.48,20.0]
[1724534255736,16.5266,160.56,160.45,20.98268456]
[1724534256835,6.4202,160.55,160.45,20.98268456]
[1724534257439,6.4202,160.55,160.43,20.98268456]
[1724534258231,6.4202,160.55,160.44,20.0]
[1724534258956,6.4202,160.55,160.45,1.55936839]
[1724534259142,6.4202,160.55,160.44,20.0]
[1724534263166,37.19748456,160.54,160.44,20.0]
[1724534263339,6.2294,160.53,160.42,2.07911112]
[1724534263535,6.2294,160.53,160.4,20.98268456]
[1724534263536,16.2148,160.52,160.4,20.98268456]
[1724534263837,6.4202,160.51,160.4,20.98268456]
[1724534264756,6.4202,160.51,160.41,65.0]
[1724534267764,6.4202,160.51,160.45,20.98268456]
[1724534270275,6.4202,160.51,160.47,20.98268456]
[1724534270583,6.4202,160.51,160.48,20.0]
[1724534270790,16.2148,160.52,160.48,20.0]
[1724534272454,6.2775,160.55,160.49,20.98268456]
[1724534272658,6.2775,160.55,160.51,20.98268456]
[1724534274989,6.2775,160.55,160.52,0.74078384]
[1724534277361,6.2775,160.55,160.51,20.98268456]
[1724534279558,16.5182,160.56,160.51,20.98268456]
[1724534279764,16.5182,160.56,160.53,20.98268456]
[1724534280097,6.6407,160.59,160.54,20.0]
[1724534282258,6.6407,160.59,160.54,20.7403125]
[1724534282672,6.6407,160.59,160.55,0.74026638]
[1724534283302,6.6407,160.59,160.55,21.72295094]
[1724534283978,6.6407,160.59,160.55,20.98268456]
[1724534284174,6.6407,160.59,160.54,20.0]
[1724534284376,6.6407,160.59,160.52,20.0]
[1724534288470,6.6407,160.59,160.55,20.98268456]
[1724534288673,16.3826,160.61,160.56,20.0]
[1724534294682,16.3826,160.61,160.54,20.0]
[1724534295785,16.3826,160.61,160.54,31.11584763]
[1724534296726,16.3826,160.61,160.54,20.0]
[1724534297089,16.3826,160.61,160.54,31.11577822]
[1724534298108,16.3826,160.61,160.54,20.34586716]
[1724534298300,16.3826,160.61,160.55,0.34584561]
[1724534299509,16.3826,160.61,160.54,31.11591336]
[1724534302790,16.3826,160.61,160.54,20.0]
[1724534305493,16.3826,160.61,160.54,31.11572959]
[1724534306301,16.3826,160.61,160.54,20.0]
[1724534309020,16.3826,160.61,160.51,11.11529853]
[1724534309201,16.3826,160.61,160.52,20.0]
[1724534309710,16.3826,160.61,160.51,31.11417076]
[1724534310425,6.2282,160.56,160.51,11.11417076]
[1724534310611,20.98268456,160.56,160.44,11.11417076]
[1724534310914,6.4086,160.54,160.45,11.11417076]
[1724534311118,12.6379,160.54,160.46,11.11417076]
[1724534311301,12.6379,160.54,160.44,11.11417076]
[1724534311497,33.62058456,160.54,160.44,11.11417076]
[1724534311802,15.4971,160.52,160.4,32.09685532]
[1724534312013,15.4971,160.52,160.41,11.11417076]
[1724534312225,15.4971,160.52,160.42,11.11417076]
[1724534312534,15.4971,160.52,160.42,21.81218241]
[1724534312816,42.70948456,160.52,160.43,21.81218241]
[1724534313014,12.6393,160.5,160.38,280.78268456]
[1724534313216,15.4971,160.48,160.38,20.98268456]
[1724534314817,36.47978456,160.48,160.36,20.98268456]
[1724534315516,36.47978456,160.48,160.34,20.98268456]
[1724534315517,15.2528,160.46,160.34,20.98268456]
[1724534316103,36.23548456,160.46,160.34,20.98268456]
[1724534316919,21.4026,160.45,160.34,20.98268456]
[1724534317130,45.0,160.44,160.35,20.0]
[1724534317426,21.4026,160.45,160.34,20.98268456]